Cogmind - Beta 14 @@@ ROGUE MODE // 2024.12.31 @ 18:30:09 Player: SuperSwiss Result: Self-destructed Performance ------------- Evolutions (1) 500 Regions Visited (2) 400 Robots Destroyed (21) 105 Value Destroyed (537) 537 Prototype IDs (2) 40 Alien Tech Used (0) 0 Bonus (0) 0 TOTAL SCORE: 1582 Bonus ------- None Cogmind --------- Core Integrity 182/400 Matter 29/450 Energy 100/100 System Corruption 0% Temperature Cool (0) Movement Core (100) Ox1 Location -9/Materials Parts ------- > --- POWER (1) -------- (None) > --- PROPULSION (3) --- (None) > --- UTILITY (3) ------ Large Matter Pod Terrain Scan Processor Weapon Shielding > --- WEAPON (2) ------- (None) > --- INVENTORY (5) ---- VTOL Module Peak State ------------ > --- POWER ------------ Ion Engine > --- PROPULSION ------- Aluminum Leg Aluminum Leg Hover Unit > --- UTILITY ---------- Large Matter Pod Terrain Scanner Weapon Shielding > --- WEAPON ----------- Grenade Launcher Grenade Launcher > --- INVENTORY -------- Terrain Scan Processor Weapon Shielding Grenade Launcher Grenade Launcher [Rating: 9] Favorites ----------- Power Light Ion Engine Engine Light Ion Engine Propulsion Aluminum Leg Leg Aluminum Leg Hover Unit Hover Unit Utility Large Matter Pod Device Terrain Scanner Storage Large Matter Pod Processor Terrain Scan Processor Protection Weapon Shielding Weapon Grenade Launcher Ballistic Gun Light Assault Rifle Launcher Grenade Launcher Build | -11 -10 -9 ------- Run | Yrd Mat Mat Slots Evolved 2 | . . 2 Power . | . . . Propulsion 1 | . . 1 Utility 1 | . . 1 Weapon . | . . . Parts Attached 18 | 5 4 9 Power 2 | 1 . 1 Engine 2 | 1 . 1 Core . | . . . Reactor . | . . . Propulsion 5 | 2 . 3 Treads . | . . . Leg 4 | 2 . 2 Wheel . | . . . Hover 1 | . . 1 Flight . | . . . Utility 5 | . 2 3 Device 1 | . . 1 Storage 1 | . 1 . Processor 1 | . . 1 Hackware . | . . . Protection 2 | . 1 1 Artifact . | . . . Weapon 6 | 2 2 2 Energy Gun . | . . . Energy Cannon . | . . . Ballistic Gun 2 | 2 . . Ballistic Cannon . | . . . Launcher 4 | . 2 2 Special Weapon . | . . . Impact Weapon . | . . . Slashing Weapon . | . . . Piercing Weapon . | . . . Special Melee Weapon . | . . . Unidentified Prototypes . | . . . Parts Lost 12 | . 1 11 Power 2 | . . 2 Propulsion 3 | . . 3 Utility 2 | . . 2 Weapon 5 | . 1 4 Highest Loss Streak 8 | . 1 8 To Critical Strikes . | . . . Average Slot Usage (%) 85 | . 90 78 Engine 11 | . 14 8 Leg 24 | . 28 19 Hover 1 | . . 2 Device 4 | . . 9 Storage 12 | . 13 11 Protection 7 | . 6 8 Ballistic Gun 8 | . 15 . Launcher 14 | . 12 18 Peak Build Rating 9 | 5 7 9 Average Rating 6 | 3 6 7 On Entrance 4 | . 5 7 Naked Turns . | . . . Heaviest Build 16 | 5 13 16 Greatest Support 20 | 20 20 20 Greatest Overweight (x) 2 | . . 2 Average Overweight (x) . | . . . Largest Inventory Capacity 5 | 5 5 5 Average Capacity 5 | 5 5 5 Most Carried 5 | 5 5 5 Average Carried 3 | 1 2 4 Final Capacity 5 | 5 5 5 Final Carried 5 | 1 5 1 Class Distribution -------------------- 100% | Mutant Dominant Class ---------------- Mutant | -10/Materials Mutant | -9/Materials Resources | -11 -10 -9 ----------- Run | Yrd Mat Mat Matter Collected 437 | 248 29 160 Remotely . | . . . Salvage Created 456 | . 229 227 Parts 36 | . 20 16 Haulers Intercepted 1 | . . 1 Recyclers Shooed 1 | . 1 . Parts Field Recycled . | . . . Retrieved Matter . | . . . Parts Self-Destructed . | . . . Prevented . | . . . Kills | -11 -10 -9 ------- Run | Yrd Mat Mat Combat Hostiles Destroyed 11 | . 4 7 Guns 2 | . 2 . AOE 9 | . 2 7 Classes Destroyed 8 | . 4 4 Worker 2 | . 2 . Tunneler 1 | . . 1 Hauler 1 | . . 1 Recycler 1 | . 1 . Operator 1 | . . 1 Watcher 4 | . 2 2 Grunt 8 | . 4 4 Sentry 3 | . . 3 Best Kill Streak 7 | . 4 7 Combat Bots Only 4 | . 1 4 Max Kills in Single Turn 4 | . 2 4 Gunslinging . | . . . Exploded 2 | . 1 2 Melee . | . . . Uniques/NPCs Destroyed . | . . . Combat | -11 -10 -9 -------- Run | Yrd Mat Mat Hostile Shots Fired 96 | . 24 72 Missed 34 | . 7 27 Damage Taken 1075 | . 383 692 Core 305 | . 87 218 Absorbed by Shields . | . . . Redirected to Shielding 74 | . 23 51 Core Remaining (%) 82 | 100 65 . Volleys Fired 50 | . 35 15 Largest 2 | . 2 2 Hottest 60 | . 60 60 Shots Fired 91 | . 70 21 Gun 58 | . 58 . Cannon . | . . . Launcher 33 | . 12 21 Special . | . . . Kinetic 58 | . 58 . Thermal . | . . . Explosive 33 | . 12 21 Electromagnetic . | . . . Robot Hit Streak 9 | . 9 3 Robot Miss Streak 5 | . 5 2 Penetration Max . | . . . Secondary Targets . | . . . Shots Hit Robots 42 | . 34 8 Core Hits 51 | . 19 32 Critical Kills . | . . . Critical Parts Destroyed 1 | . 1 . Critical Strikes 1 | . 1 . Destroy 1 | . 1 . Melee Attacks . | . . . Impact . | . . . Slashing . | . . . Piercing . | . . . Sneak Attacks . | . . . Combat Hostiles . | . . . Follow-up Attacks . | . . . Damage Inflicted 1299 | . 664 635 Guns 241 | . 241 . Cannons . | . . . Explosions 1058 | . 423 635 Melee . | . . . Ramming . | . . . Kinetic 241 | . 241 . Thermal . | . . . Explosive 1058 | . 423 635 Electromagnetic . | . . . Impact . | . . . Slashing . | . . . Piercing . | . . . Highest Corruption . | . . . Average Corruption . | . . . Corruption Purged . | . . . Corruption Blocked . | . . . Overload Shots . | . . . Overflow Damage 21 | . 21 . Projectiles . | . . . Explosions 21 | . 21 . Melee . | . . . Knockbacks . | . . . Impact . | . . . Kinetic . | . . . Secondary . | . . . Self-Inflicted Damage 124 | . 124 . Shots 7 | . 7 . Rammed . | . . . Targets Rammed . | . . . Kicked . | . . . Crushed . | . . . Highest Temperature 33 | . 33 14 Average Temperature 13 | . 14 8 Received Heat Transfer 324 | . 138 186 Siege Activations . | . . . Robots Corrupted . | . . . Combat Hostiles . | . . . Parts Fried . | . . . Impact Corruptions . | . . . Robots Melted . | . . . Combat Hostiles . | . . . Parts Melted . | . . . Heat Transferred . | . . . Parts Sabotaged . | . . . Parts Stolen . | . . . Parts Stripped . | . . . Power Chain Reactions . | . . . Alert | -11 -10 -9 ------- Run | Yrd Mat Mat Peak Influence 322 | . 210 322 Initial 88 | . . 88 Average 129 | . 113 183 Maximum Alert Level 1 | . 1 1 Low Security (%) 78 | 100 79 70 Level 1 21 | . 20 29 Level 2 . | . . . Level 3 . | . . . Level 4 . | . . . Level 5 . | . . . High Security . | . . . Max Security . | . . . Squads Dispatched 1 | . 1 . Investigation . | . . . Extermination . | . . . Reinforcement 1 | . 1 . Assault . | . . . Garrison . | . . . Intercept . | . . . Searches Triggered . | . . . Construction Impeded . | . . . Haulers Reinforced . | . . . Active Scanning Responses . | . . . Cargo Convoy Interrupts . | . . . Stealth | -11 -10 -9 --------- Run | Yrd Mat Mat Distress Signals 1 | . . 1 Communications Jammed . | . . . Distress Signals . | . . . Times Spotted 21 | . 10 11 Peak Tracking Total 5 | . 4 5 Tactical Retreats . | . . . Traps | -11 -10 -9 ------- Run | Yrd Mat Mat Traps Triggered 1 | . 1 . Indirectly . | . . . Trap Hack Attempts . | . . . Triggered . | . . . Disarmed . | . . . Reprogrammed . | . . . Reused . | . . . Traps Extracted . | . . . Installed . | . . . Triggered . | . . . Machines | -11 -10 -9 ---------- Run | Yrd Mat Mat Machines Disabled 2 | . 1 1 Max in Single Turn 1 | . 1 1 Machines Repaired . | . . . Machines Dismantled . | . . . Machines Sabotaged . | . . . Overloaded Fab Kills . | . . . Hacking | -11 -10 -9 --------- Run | Yrd Mat Mat Machines Accessed 5 | . 3 2 Terminals 5 | . 3 2 Fabricators . | . . . Repair Stations . | . . . Recycling Units . | . . . Scanalyzers . | . . . Garrison Access . | . . . Total Hacks 6 | . 4 2 Successful 4 | . 3 1 Failed 2 | . 1 1 Catastrophic . | . . . Database Lockouts . | . . . Manual . | . . . Terminals 6 | . 4 2 Fabricators . | . . . Repair Stations . | . . . Recycling Units . | . . . Scanalyzers . | . . . Garrison Access . | . . . Terminal Hacks 4 | . 3 1 Prototype ID Bank 1 | . . 1 Alert Level 1 | . 1 . Recall Investigation 1 | . 1 . Zone Layout 1 | . 1 . Fabricator Hacks . | . . . Repair Station Hacks . | . . . Recycling Unit Hacks . | . . . Scanalyzer . | . . . Garrison Access Hacks . | . . . Unauthorized Hacks . | . . . Terminals . | . . . Fabricators . | . . . Repair Stations . | . . . Recycling Units . | . . . Scanalyzers . | . . . Garrison Access . | . . . Data Cores Recovered . | . . . Used . | . . . Hacking Detections 2 | . 1 1 Full Trace Events . | . . . Feedback Events . | . . . Feedback Blocked . | . . . Robot Schematics Acquired . | . . . Robots Built . | . . . Authchips . | . . . Time . | . . . Total Robot Build Rating . | . . . Part Schematics Acquired . | . . . Parts Built . | . . . Authchips . | . . . Time . | . . . Total Part Build Rating . | . . . Parts Repaired . | . . . Time . | . . . Parts Recycled . | . . . Recycled Matter . | . . . Retrieved Matter . | . . . Retrieved Components . | . . . Parts Scanalyzed . | . . . Part Schematics Acquired . | . . . Parts Damaged . | . . . Bothacking | -11 -10 -9 ------------ Run | Yrd Mat Mat Used RIF Installer . | . . . Robots Hacked . | . . . Non-combat . | . . . Combat . | . . . Robot Hacks Applied . | . . . Relay Couplers Released . | . . . Fabnet Peak Effective % . | . . . Robots Rewired . | . . . Allies Hacked . | . . . Hacks Repelled . | . . . Allies | -11 -10 -9 -------- Run | Yrd Mat Mat Total Allies . | . . . Largest Group . | . . . Highest-Rated Group . | . . . Highest-Rated Ally . | . . . Total Orders . | . . . Ally Attacks . | . . . Total Damage . | . . . Kills . | . . . Allies Corrupted . | . . . Allies Melted . | . . . Intel | -11 -10 -9 ------- Run | Yrd Mat Mat Robot Analysis Total . | . . . Derelict Logs Recovered . | . . . Drone Launches . | . . . Drone Recoveries . | . . . Exploration | -11 -10 -9 ------------- Run | Yrd Mat Mat Turns Passed 691 | 61 377 253 Spaces Moved 436 | 56 226 154 Core 28 | 23 . 5 Treads . | . . . Legs 394 | 33 226 135 Wheels . | . . . Hover 14 | . . 14 Flight . | . . . Fastest Speed 50 | 50 120 120 Average Speed 119 | 91 120 128 Slowest Speed 200 | 120 120 200 Overloaded Moves . | . . . Propulsion Burnouts . | . . . Robots Hopped . | . . . Cave-ins Triggered 1 | . . 1 Exploration Rate (%) 23 | 3 44 22 Regions Visited 2 Branch Regions . Pre-discovered Areas . | . . . Known Exits Taken . | . . . Unknown Exits Taken 2 | 1 1 . Scrap Searched . | . . . Spaces Dug . | . . . Terrain Destroyed 135 | . 39 96 Melee . | . . . Projectile . | . . . AOE 135 | . 39 96 Terrain Rammed . | . . . Walls Destroyed . | . . . Machines Disabled . | . . . Actions | -11 -10 -9 --------- Run | Yrd Mat Mat Total 526 | 65 274 187 Wait 6 | . 1 5 Move 434 | 55 225 154 Hop . | . . . Pick Up 15 | 5 8 2 Fast Attach 4 | 1 . 3 Attach 14 | 4 4 6 Detach . | . . . Swap . | . . . Drop 3 | . 1 2 Fire 50 | . 35 15 Melee . | . . . Ram . | . . . Kick . | . . . Crush . | . . . Escape Stasis . | . . . Rewire . | . . . Trap . | . . . Miscellaneous . | . . . Route ------- -11/Scrapyard -10/Materials (discovered 2 exits: *Mat x2) -9/Materials History --------- Turn | Location | Event 5 | -11/Scrapyard | Discovered new exit (range 14) 62 | -11/Scrapyard | Entered Materials 233 | -10/Materials | Discovered new exit (range 16) 318 | -10/Materials | Build established: Mutant 400 | -10/Materials | Discovered new exit (range 8) 439 | -10/Materials | Entered another Materials area 439 | -9/Materials | Evolved 2 slots: Propulsion x1, Utility x1 691 | -9/Materials | Crushed by falling debris 691 | -9/Materials | Core integrity fell below 50% 692 | -9/Materials | Self-destructed Last Messages --------------- Grenade Launcher destroyed. Acquired 26 matter. Acquired 29 matter. Acquired 31 matter. The unstable cave ceiling collapses. Critical hit (Burn: +37). Aluminum Leg destroyed. Terrain Scanner destroyed. K-01 Serf collects debris. Aluminum Leg destroyed. The unstable cave ceiling collapses. Y-45 Defender destroyed. U-05 Engineer lays Concrete. U-05 Engineer builds a Wall. U-05 Engineer lays Concrete. U-05 Engineer builds a Wall. The unstable cave ceiling collapses. Crushed by falling debris. [Achievement: Unlikely Earthworm] Grenade Launcher destroyed. Map ----- +----------------------------------------------------+ | ?????????????????????????? #?#?## ## | | ?????????????????????????## ######### | | ?????????????????????????# | | ?????????????????????##### T | | ???????????????? + | | ?????????????????????###### %[ ####### # | | ??????????????????????????# = #?????## ###+ | | ???????????????????#????#?# ! ###?????#### | | ??????????????????????????# #????????#??# | | ?????????????????######???# ##??????????# | | ?????????????????# ##### #?##????????# | | ????????# ???????# #?#?????????# !![ | | ????????# ??????# #????????##?# ![[ | | ????????# ?????# #???????????# ![[ | | ????????# ???## # ######+###??????????# | | ???????#?# #### k # #???????#??###### | | ?????????# ## # #????#??????????? | | ?????????# % # [ #???????????????? | | ?????????# = [ ! #?#?????????????? | | ?????????# # #????????#??????? | | ?????????### # # Y #???????????????? | | ??????????????## #?????????????#?? | | ??????????????# #???????????#??#? | | ?????????????### #########???????????????? | | ?????????????+ # # # ##???????????????????? | | ????????"????##### @===#???????????????????? | | ?????????????????# ]]! ===##??????#???????????? | | ?????????????##### [ [ ===#???????????????????? | | ?????????????# % ]] ###?????????????????? | | ?????????????+ # #???????#???????????? | | ?????????????# u# #????????#??????????? | | ?????????????# ########???????????????????? | | ?????????????# #??????????????????????????? | | ?????????????#ss +?????????????#????????????? | | ?????????????# #### #??????????????????????????? | | ?????????????# ???# #??????????????????????????? | | ?????????????#????##+##????????#?#???????????????? | | ?????????????????????????????#???????????????????? | | ?????????????????????????????????????????????????? | | ????????????????????? ???????????????????????????? | | ?????????????????? ??????????????????????????????? | | ?????????????????????????????????????????????????? | | ?????????????????????????????????????????????????? | | ?????????????????????????????????????????????????? | | ?????????????????????????????????????????????????? | | ?????????????????????????????????????????????????? | | ?????????????????????????????????????????????????? | | ?????????????????????????????????????????????????? | | ?????????????????????????????????????????????????? | | ?????????????????????????????????????????????????? | +----------------------------------------------------+ Best States ------------- Heat Dissipation 28 Energy Generation 10 Energy Capacity 250 Matter Stores 298 Matter Capacity 450 Sight Range 16 Terrain Scan Range 14 Terrain Scan Density 85 Weapon Shielding 33 Evasion (%) 55 Item Schematics ----------------- None Robot Schematics ------------------ None Fabricated ------------ Nothing Alien Tech Used ----------------- None Achievements -------------- Oops Unlikely Earthworm Challenges ------------ None Game ------ Seed ShadingTiamatArray Manual? 0 Play Time 00:12:59 Cumulative 3.5 hours Start 2024.12.31 @ 18:17:02 End 2024.12.31 @ 18:30:09 Sessions 1 Manual Loads 0 Difficulty Rogue Special Mode None Game No. 7 Rogue 4 Adventurer 0 Explorer 3 Win Type - Total 0 Types 0/0/0/0/0/0/0/0/0 Lore% 0 Gallery% 6 Achievement% 7 Wizard Run 0 Options --------- Layout 1 ASCII 0 Keyboard 0 Movement Mouse Keybinds 0 Fullscreen 0 Font 20/SmallcapsGlow Map View 50x35 Zoom Use 0% Tactical HUD 0 Map Filters NONE Filters NONE Steam 1 RUN: a72fa069-755a-485e-92e1-32a0cdb0ceb0